Cogmind - Beta 11 @@@ ROGUE MODE // 2022.03.24 @ 20:08:02 Player: DrZettl Result: Destroyed by as-30308 with Assembled Maul Performance ------------- Evolutions (0) 0 Regions Visited (2) 400 Robots Destroyed (20) 100 Value Destroyed (399) 399 Prototype IDs (2) 40 Alien Tech Used (0) 0 Bonus (35) 35 TOTAL SCORE: 974 Bonus ------- Follower Combat Kills 35 Cogmind --------- Core Integrity 0/250 Matter 264/300 Energy 31/250 System Corruption 0% Temperature Cool (8) Movement Rolling (95) Ox1 Location -10/Mines Parts ------- > --- POWER (1) -------- Ion Engine > --- PROPULSION (2) --- Wheel Wheel > --- UTILITY (2) ------ Large Storage Unit Shield Generator > --- WEAPON (2) ------- Heavy Assault Rifle Grenade Launcher > --- INVENTORY (15) --- Wheel Sensor Array Improved Terrain Scanner ECM Suite Assault Rifle Heavy Assault Rifle Heavy Assault Rifle Heavy Assault Rifle Light Cannon Light Cannon Peak State ------------ > --- POWER ------------ Ion Engine > --- PROPULSION ------- Wheel Compact Wheel > --- UTILITY ---------- Small Storage Unit Shield Generator > --- WEAPON ----------- Light Assault Rifle Heavy Assault Rifle > --- INVENTORY -------- Ion Engine Light Treads Light Treads Wheel Improved Terrain Scanner Assault Rifle Heavy Assault Rifle Heavy Assault Rifle [Rating: 10] Favorites ----------- Power Ion Engine Engine Ion Engine Propulsion Wheel Wheel Wheel Utility Sensor Array Device Sensor Array Storage Small Storage Unit Weapon Heavy Assault Rifle Ballistic Gun Heavy Assault Rifle Launcher Grenade Launcher Build | -11 -10 -10 ------- Run | Scr Mat Min Slots Evolved . | . . . Power . | . . . Propulsion . | . . . Utility . | . . . Weapon . | . . . Parts Attached 22 | 7 9 6 Power 2 | 1 . 1 Engine 2 | 1 . 1 Core . | . . . Reactor . | . . . Propulsion 5 | 2 2 1 Treads . | . . . Leg . | . . . Wheel 5 | 2 2 1 Hover . | . . . Flight . | . . . Utility 8 | 2 5 1 Device 5 | 1 3 1 Storage 3 | 1 2 . Processor . | . . . Hackware . | . . . Protection . | . . . Artifact . | . . . Weapon 7 | 2 2 3 Energy Gun . | . . . Energy Cannon . | . . . Ballistic Gun 5 | 2 2 1 Ballistic Cannon . | . . . Launcher 2 | . . 2 Special Weapon . | . . . Impact Weapon . | . . . Slashing Weapon . | . . . Piercing Weapon . | . . . Special Melee Weapon . | . . . Unidentified Prototypes . | . . . Parts Lost 3 | . 1 2 Power 1 | . . 1 Propulsion 1 | . . 1 Utility 1 | . 1 . Weapon . | . . . Highest Loss Streak 1 | . 1 1 To Critical Strikes . | . . . Average Slot Usage (%) 98 | . 99 95 Engine 13 | . 14 10 Wheel 27 | . 28 27 Device 13 | . 13 14 Storage 14 | . 14 14 Ballistic Gun 27 | . 28 25 Naked Turns . | . . . Heaviest Build 32 | 14 31 32 Greatest Support 26 | 26 26 20 Greatest Overweight (x) 2 | . 1 2 Average Overweight (x) . | . . 1 Largest Inventory Capacity 15 | 8 15 15 Average Capacity 10 | 7 9 15 Most Carried 12 | 7 11 12 Average Carried 8 | 4 8 10 Final Capacity 15 | 8 15 15 Final Carried 11 | 7 11 10 Class Distribution -------------------- 100% | Mutant Dominant Class ---------------- Mutant | -10/Materials Mutant | -10/Mines Resources | -11 -10 -10 ----------- Run | Scr Mat Min Matter Collected 746 | 294 259 193 Remotely . | . . . Salvage Created 642 | 79 392 171 Parts 37 | 4 24 9 Haulers Intercepted 2 | . 2 . Recyclers Shooed 1 | 1 . . Parts Field Recycled . | . . . Retrieved Matter . | . . . Parts Self-Destructed . | . . . Prevented . | . . . Kills | -11 -10 -10 ------- Run | Scr Mat Min Combat Hostiles Destroyed 17 | . 7 10 Guns 10 | . 7 3 AOE 7 | . . 7 Classes Destroyed 8 | 2 5 1 Tunneler 1 | 1 . . Hauler 2 | . 2 . Recycler 1 | 1 . . Operator 2 | . 2 . Watcher 1 | . 1 . Swarmer 6 | . 3 3 Grunt 7 | . 4 3 Assembled 4 | . . 4 Best Kill Streak 4 | 2 3 4 Combat Bots Only 4 | . 3 4 Max Kills in Single Turn 4 | 1 1 4 Gunslinging . | . . . Exploded 4 | . . 4 Melee . | . . . Uniques/NPCs Destroyed . | . . . Combat | -11 -10 -10 -------- Run | Scr Mat Min Damage Taken 875 | . 392 483 Core 253 | . 135 118 Absorbed by Shields 222 | . 115 107 Core Remaining (%) 100 | 100 . . Volleys Fired 85 | 6 55 24 Largest 2 | 2 2 2 Hottest 53 | 40 43 53 Shots Fired 145 | 12 87 46 Gun 142 | 12 87 43 Cannon . | . . . Launcher 3 | . . 3 Special . | . . . Kinetic 142 | 12 87 43 Thermal . | . . . Explosive 3 | . . 3 Electromagnetic . | . . . Robot Hit Streak 13 | 4 13 12 Robot Miss Streak 5 | 2 5 3 Penetration Max . | . . . Secondary Targets 1 | . . 1 Max Gunslinging Chain 1 | . . 1 Shots Hit Robots 92 | 6 53 33 Core Hits 47 | 3 23 21 Critical Kills 1 | . 1 . Critical Parts Destroyed . | . . . Critical Strikes 1 | . 1 . Destroy 1 | . 1 . Melee Attacks . | . . . Impact . | . . . Slashing . | . . . Piercing . | . . . Sneak Attacks . | . . . Combat Hostiles . | . . . Follow-up Attacks . | . . . Damage Inflicted 1610 | 71 642 897 Guns 1153 | 71 626 456 Cannons . | . . . Explosions 414 | . . 414 Melee . | . . . Ramming 43 | . 16 27 Kinetic 1153 | 71 626 456 Thermal . | . . . Explosive 414 | . . 414 Electromagnetic . | . . . Impact . | . . . Slashing . | . . . Piercing . | . . . Highest Corruption . | . . . Average Corruption . | . . . Corruption Purged . | . . . Corruption Blocked . | . . . Overload Shots . | . . . Overflow Damage 12 | . . 12 Projectiles . | . . . Explosions 12 | . . 12 Melee . | . . . Knockbacks 2 | . 1 1 Impact 2 | . 1 1 Kinetic . | . . . Secondary . | . . . Self-Inflicted Damage 56 | . 7 49 Shots 2 | . . 2 Rammed 3 | . 2 1 Targets Rammed 3 | . 2 1 Kicked . | . . . Crushed . | . . . Highest Temperature 11 | . 8 11 Average Temperature 3 | . 2 9 Received Heat Transfer 290 | . 127 163 Siege Activations . | . . . Robots Corrupted . | . . . Combat Hostiles . | . . . Parts Fried . | . . . Impact Corruptions . | . . . Robots Melted . | . . . Combat Hostiles . | . . . Parts Melted . | . . . Heat Transferred . | . . . Parts Sabotaged . | . . . Parts Stolen . | . . . Parts Stripped . | . . . Power Chain Reactions . | . . . Missiles Intercepted . | . . . Alert | -11 -10 -10 ------- Run | Scr Mat Min Peak Influence 280 | 10 230 280 Initial 30 | . 6 30 Average 108 | 3 111 154 Maximum Alert Level 1 | . 1 1 Low Security (%) 74 | 100 69 77 Level 1 25 | . 30 22 Level 2 . | . . . Level 3 . | . . . Level 4 . | . . . Level 5 . | . . . High Security . | . . . Max Security . | . . . Squads Dispatched . | . . . Investigation . | . . . Extermination . | . . . Reinforcement . | . . . Assault . | . . . Garrison . | . . . Intercept . | . . . Searches Triggered . | . . . Construction Impeded . | . . . Haulers Reinforced . | . . . Active Scanning Responses . | . . . Cargo Convoy Interrupts . | . . . Stealth | -11 -10 -10 --------- Run | Scr Mat Min Distress Signals 1 | . 1 . Communications Jammed . | . . . Distress Signals . | . . . Times Spotted 41 | . 14 27 Peak Tracking Total 19 | . 5 19 Tactical Retreats 1 | . . 1 Traps | -11 -10 -10 ------- Run | Scr Mat Min Traps Triggered 1 | . 1 . Indirectly . | . . . Trap Hack Attempts . | . . . Triggered . | . . . Disarmed . | . . . Reprogrammed . | . . . Reused . | . . . Traps Extracted . | . . . Installed . | . . . Triggered . | . . . Machines | -11 -10 -10 ---------- Run | Scr Mat Min Machines Disabled 1 | . . 1 Max in Single Turn . | . . . Machines Sabotaged . | . . . Garrisons Compromised . | . . . Overloaded Fab Kills . | . . . Hacking | -11 -10 -10 --------- Run | Scr Mat Min Machines Accessed 3 | . 3 . Terminals 3 | . 3 . Fabricators . | . . . Repair Stations . | . . . Recycling Units . | . . . Scanalyzers . | . . . Garrison Access . | . . . Total Hacks 7 | . 7 . Successful 2 | . 2 . Failed 5 | . 5 . Catastrophic 1 | . 1 . Database Lockouts . | . . . Manual 5 | . 5 . Terminals 7 | . 7 . Fabricators . | . . . Repair Stations . | . . . Recycling Units . | . . . Scanalyzers . | . . . Garrison Access . | . . . Terminal Hacks 2 | . 2 . Prototype ID Bank 1 | . 1 . Hauler Manifests 1 | . 1 . Fabricator Hacks . | . . . Repair Station Hacks . | . . . Recycling Unit Hacks . | . . . Scanalyzer . | . . . Garrison Access Hacks . | . . . Unauthorized Hacks . | . . . Terminals . | . . . Fabricators . | . . . Repair Stations . | . . . Recycling Units . | . . . Scanalyzers . | . . . Garrison Access . | . . . Data Cores Recovered 2 | . 2 . Used 1 | . 1 . Hacking Detections 4 | . 4 . Full Trace Events . | . . . Feedback Events . | . . . Feedback Blocked . | . . . Robot Schematics Acquired . | . . . Robots Built . | . . . Authchips . | . . . Time . | . . . Total Robot Build Rating . | . . . Part Schematics Acquired . | . . . Parts Built . | . . . Authchips . | . . . Time . | . . . Total Part Build Rating . | . . . Parts Repaired . | . . . Time . | . . . Parts Recycled . | . . . Recycled Matter . | . . . Retrieved Matter . | . . . Retrieved Components . | . . . Parts Scanalyzed . | . . . Part Schematics Acquired . | . . . Parts Damaged . | . . . Bothacking | -11 -10 -10 ------------ Run | Scr Mat Min Used RIF Installer . | . . . Robots Hacked . | . . . Non-combat . | . . . Combat . | . . . Robot Hacks Applied . | . . . Relay Couplers Released . | . . . Fabnet Peak Effective % . | . . . Robots Rewired . | . . . Allies Hacked . | . . . Hacks Repelled . | . . . Allies | -11 -10 -10 -------- Run | Scr Mat Min Total Allies 2 | . . 2 Largest Group 2 | . . 2 Highest-Rated Group 43 | . . 43 Highest-Rated Ally 31 | . . 31 Total Orders . | . . . Ally Attacks 20 | . . 20 Total Damage 313 | . . 313 Kills 3 | . . 3 Allies Corrupted . | . . . Allies Melted . | . . . Intel | -11 -10 -10 ------- Run | Scr Mat Min Robot Analysis Total . | . . . Derelict Logs Recovered 1 | . . 1 Drone Launches . | . . . Drone Recoveries . | . . . Exploration | -11 -10 -10 ------------- Run | Scr Mat Min Turns Passed 1067 | 114 746 207 Spaces Moved 900 | 86 680 134 Core 2 | 2 . . Treads . | . . . Legs . | . . . Wheels 898 | 84 680 134 Hover . | . . . Flight . | . . . Fastest Speed 50 | 50 80 95 Average Speed 85 | 89 83 95 Slowest Speed 110 | 100 95 110 Overloaded Moves . | . . . Propulsion Burnouts . | . . . Robots Hopped . | . . . Cave-ins Triggered . | . . . Exploration Rate (%) 39 | 5 75 39 Regions Visited 2 Branch Regions 1 Pre-discovered Areas . | . . . Known Exits Taken . | . . . Unknown Exits Taken 2 | 1 1 . Scrap Searched 1 | . . 1 Spaces Dug . | . . . Terrain Destroyed 19 | . . 19 Melee . | . . . Projectile . | . . . AOE 19 | . . 19 Terrain Rammed . | . . . Walls Destroyed . | . . . Machines Disabled . | . . . Actions | -11 -10 -10 --------- Run | Scr Mat Min Total 1056 | 108 782 166 Wait 19 | 3 16 . Move 898 | 85 679 134 Hop . | . . . Pick Up 17 | 7 9 1 Fast Attach 11 | 7 4 . Attach 2 | . . 2 Detach 1 | . 1 . Swap 9 | . 5 4 Drop 11 | . 11 . Fire 85 | 6 55 24 Melee . | . . . Ram 3 | . 2 1 Kick . | . . . Crush . | . . . Escape Stasis . | . . . Rewire . | . . . Trap . | . . . Miscellaneous . | . . . Route ------- -11/Scrapyard -10/Materials (discovered 3 exits: [*Mat] / [*Min x2]) -10/Mines History --------- Turn | Location | Event 30 | -11/Scrapyard | Discovered new exit (range 14) 115 | -11/Scrapyard | Entered Materials 266 | -10/Materials | Core integrity fell below 50% 342 | -10/Materials | Build established: Mutant 516 | -10/Materials | Discovered new exit (range 11) 532 | -10/Materials | Discovered new exit (range 4) 707 | -10/Materials | Discovered new exit (range 12) 861 | -10/Materials | Entered Mines 1017 | -10/Mines | Core integrity fell below 20% 1043 | -10/Mines | Assembled infested the area 1048 | -10/Mines | Assisted by a Guerilla fighting off Assembled 1068 | -10/Mines | Destroyed by as-30308 with Assembled Maul Last Messages --------------- 01031_ Acquired 42 matter. 01033_ Acquired 34 matter. 01038_ Slammed into T-07 Excavator. 01038_ T-07 Excavator knocked back. 01043_ ALERT: Infestation in the mines, dispatching Demolisher response squad. 01047_ DT-2UT(h): "I'll hold them off! Go on ahead or try to find another way!" 01048_ A derelict emerges from the shadows: "You need to get out of here! I've been tracking a group of Assembled to figure out where they're coming from, and they're closing on this area, come on!" 01051_ T-07 Excavator destroyed. 01055_ as-25920 destroyed. 01055_ DT-2UT(h) destroyed. 01063_ Knocked back. 01066_ as-57084 destroyed. 01066_ Destroyed Asb. Hover Unit. 01066_ as-80418 destroyed. 01066_ as-50688 destroyed. 01067_ The unstable cave ceiling collapses. Map ----- +----------------------------------------------------+ | ????????????????# #????????????? | | ????????????????#=########?????? | | ????????????????#%[ #??? | | ????????????????# ########?????? | | ????????????????# #????????????? | | ????????????????# #????????????? | | ????????????????# #????????????? | | ????????????????#%#????????????? | | ????????????????# #????????????? | | ????????????????# ##???????????? | | ??????????####?## ### #???????? | | ?????????## ### !%= #???????? | | ????????## % |## #???????? | | ???????## ### ##??????? | | ??????## % % #???? | | ??????# % #??? | | ??????# ## ###### ??? | | ??????## ######?????? ??? | | ?????### #????????????? ??? | | ??#### a #??????????????? ?? | | ?## a a% ##??????????????????? | | ?# a ##???????????????????? | | ?# aa##?????????????????????? | | ?# a #?????????????????????? | | ?# aaa##????????????????????? | | ??# @ #????????????????????? | | ??# ##????????????????????? | | ??### ##?????????????????????? | | ????#####??????????????????????? | | ???????????????????????????????? | | ???????????????????????????????? | | | | | | | | | | | | | | | | | | | | | | | | | | | | | | | | | | | | | | | +----------------------------------------------------+ Best States ------------- Heat Dissipation 25 Energy Generation 10 Energy Capacity 250 Matter Stores 300 Matter Capacity 300 Sight Range 16 Robot Scan Range 14 Terrain Scan Range 16 Terrain Scan Density 10 Evasion (%) 44 Item Schematics ----------------- None Robot Schematics ------------------ None Fabricated ------------ Nothing Alien Tech Used ----------------- None Achievements -------------- None Challenges ------------ None Game ------ Seed ShockBombardmentScanner Manual? 0 Play Time 00:20:26 Cumulative 60.3 hours Start 2022.03.23 @ 16:59:09 End 2022.03.24 @ 20:08:02 Sessions 4 Manual Loads 0 Difficulty Rogue Special Mode None Game No. 66 Rogue 66 Adventurer 0 Explorer 0 Win Type - Total 0 Types 0/0/0/0/0/0/0/0/0 Lore% 29 Gallery% 42 Achievement% 31 Wizard Run 0 Options --------- ASCII 0 Keyboard 0 Movement Numpad Keybinds 0 Fullscreen 1 Font 16/Smallcaps Map View 76x50 Tactical HUD 1 Map Filters NONE Filters NONE Steam 1 RUN: a520b656-6603-442c-bbde-1c04732a9ca5